fUSD/lending_fUSD_20250410
["ID","MTS","AMOUNT","RATE_DAILY","PERIOD"]
[357644315,1744264243372,-500.0,0.00038356,2]
[357644316,1744264243381,-931.54,0.00038356,2]
[357644317,1744264243390,-500.0,0.00038356,2]
[357644318,1744264243400,-509.98651193,0.00038356,2]
[357644319,1744264243409,-500.0,0.00038356,2]
[357644320,1744264243418,-500.0,0.00038356,2]
[357644321,1744264243428,-500.0,0.00038356,2]
[357644322,1744264243437,-500.0,0.00038356,2]
[357644323,1744264243447,-500.0,0.00038356,2]
[357644324,1744264243457,-500.0,0.00038356,2]
[357644325,1744264243466,-500.0,0.00038356,2]
[357644326,1744264243475,-1495.48,0.00038356,2]
[357644327,1744264243485,-500.0,0.00038356,2]
[357644328,1744264243495,-972.95,0.00038356,2]
[357644329,1744264243504,-500.0,0.00038356,2]
[357644330,1744264243514,-500.0,0.00038356,2]
[357644331,1744264243524,-500.0,0.00038356,2]
[357644332,1744264243534,-521.13,0.00038356,2]
[357644333,1744264243543,-500.0,0.00038356,2]
[357644334,1744264243553,-500.0,0.00038356,2]
[357644335,1744264243563,-500.0,0.00038356,2]
[357644336,1744264243573,-500.0,0.00038356,2]
[357644337,1744264243583,-500.0,0.00038356,2]
[357644338,1744264243592,-961.58,0.00038356,2]
[357644339,1744264243602,-500.0,0.00038356,2]
[357644340,1744264243612,-500.0,0.00038356,2]
[357644341,1744264243622,-1797.46,0.00038356,2]
[357644342,1744264243631,-500.0,0.00038356,2]
[357644343,1744264243641,-500.0,0.00038356,2]
[357644344,1744264243650,-500.0,0.00038356,2]
[357644345,1744264243661,-500.0,0.00038356,2]
[357644346,1744264243672,-194.8793773,0.00038356,2]
[357644347,1744264243685,-500.0,0.00038356,2]
[357644348,1744264243697,-660.7,0.00038356,2]
[357644349,1744264243708,-500.0,0.00038356,2]
[357644350,1744264243718,-500.0,0.00038356,2]
[357644351,1744264243729,-599.62,0.00038356,2]
[357644352,1744264243738,-253.7826683,0.00038356,2]
[357644353,1744264243748,-457.94089072,0.00038356,2]
[357644354,1744264243759,-662.29,0.00038356,2]
[357644355,1744264243773,-500.0,0.00038356,2]
[357644356,1744264243783,-500.0,0.00038356,2]
[357644357,1744264243792,-500.0,0.00038356,2]
[357644358,1744264243803,-500.0,0.00038356,2]
[357644359,1744264243812,-500.0,0.00038356,2]
[357644360,1744264243822,-500.0,0.00038356,2]
[357644361,1744264243831,-1615.21,0.00038356,2]
[357644362,1744264243842,-500.0,0.00038356,2]
[357644363,1744264243852,-375.43527064,0.00038356,2]
[357644364,1744264243861,-500.0,0.00038356,2]
[357644365,1744264243871,-1156.4,0.00038356,2]
[357644366,1744264243880,-500.0,0.00038356,2]
[357644367,1744264243889,-500.0,0.00038356,2]
[357644368,1744264243898,-500.0,0.00038356,2]
[357644369,1744264243908,-651.54,0.00038356,2]
[357644370,1744264243918,-500.0,0.00038356,2]
[357644371,1744264243927,-500.0,0.00038356,2]
[357644372,1744264243936,-500.0,0.00038356,2]
[357644373,1744264243946,-500.0,0.00038356,2]
[357644374,1744264243955,-500.0,0.00038356,2]
[357644375,1744264243965,-500.0,0.00038356,2]
[357644376,1744264243974,-500.0,0.00038356,2]
[357644377,1744264243984,-502.5496871,0.00038356,2]
[357644378,1744264243995,-500.0,0.00038356,2]
[357644379,1744264244005,-500.0,0.00038356,2]
[357644380,1744264244015,-197.93780551,0.00038356,2]
[357644381,1744264244025,-500.0,0.00038356,2]
[357644382,1744264244035,-500.0,0.00038356,2]
[357644383,1744264244045,-504.69680575,0.00038356,2]
[357644384,1744264244055,-500.0,0.00038356,2]
[357644385,1744264244065,-500.0,0.00038356,2]
[357644386,1744264244075,-538.43061171,0.00038356,2]
[357644387,1744264244085,-1054.21,0.00038356,2]
[357644388,1744264244094,-500.0,0.00038356,2]
[357644389,1744264244103,-504.02848639,0.00038356,2]
[357644390,1744264244113,-500.0,0.00038356,2]
[357644391,1744264244124,-500.0,0.00038356,2]
[357644392,1744264244135,-500.0,0.00038356,2]
[357644393,1744264244145,-516.58,0.00038356,2]
[357644394,1744264244155,-504.72842077,0.00038356,2]
[357644395,1744264244164,-500.0,0.00038356,2]
[357644396,1744264244174,-196.07644626,0.00038356,2]
[357644397,1744264244183,-500.0,0.00038356,2]
[357644398,1744264244192,-977.31,0.00038356,2]
[357644399,1744264244203,-500.0,0.00038356,2]
[357644400,1744264244212,-500.0,0.00038356,2]
[357644401,1744264244221,-502.98713703,0.00038356,2]
[357644402,1744264244231,-500.0,0.00038356,2]
[357644403,1744264244241,-500.0,0.00038356,2]
[357644404,1744264244250,-500.0,0.00038356,2]
[357644405,1744264244260,-500.0,0.00038356,2]
[357644406,1744264244270,-500.0,0.00038356,2]
[357644407,1744264244279,-500.0,0.00038356,2]
[357644408,1744264244288,-591.27,0.00038356,2]
[357644409,1744264244298,-500.0,0.00038356,2]
[357644410,1744264244307,-500.0,0.00038356,2]
[357644411,1744264244317,-500.0,0.00038356,2]
[357644412,1744264244326,-500.0,0.00038356,2]
[357644413,1744264244336,-500.0,0.00038356,2]
[357644414,1744264244346,-500.0,0.00038356,2]
[357644415,1744264244355,-502.98713871,0.00038356,2]
[357644416,1744264244365,-500.0,0.00038356,2]
[357644417,1744264244375,-319.98279236,0.00038356,30]
[357644418,1744264244384,-500.0,0.00038356,2]
[357644419,1744264244394,-564.55,0.00038356,2]
[357644420,1744264244404,-500.0,0.00038356,2]
[357644421,1744264244413,-525.18651707,0.00038356,2]
[357644422,1744264244423,-500.0,0.00038356,2]
[357644423,1744264244433,-500.0,0.00038356,2]
[357644424,1744264244442,-502.96869332,0.00038356,2]
[357644425,1744264244451,-500.0,0.00038356,2]
[357644426,1744264244461,-500.0,0.00038356,2]
[357644427,1744264244471,-500.0,0.00038356,2]
[357644428,1744264244480,-500.0,0.00038356,2]
[357644429,1744264244490,-500.0,0.00038356,2]
[357644430,1744264244499,-591.62,0.00038356,2]
[357644431,1744264244509,-500.0,0.00038356,2]
[357644432,1744264244519,-520.35,0.00038356,2]
[357644433,1744264244528,-570.18,0.00038356,2]
[357644434,1744264244538,-568.79,0.00038356,2]
[357644435,1744264244547,-500.0,0.00038356,2]
[357644436,1744264244558,-500.0,0.00038356,2]
[357644437,1744264244568,-530.88808671,0.00038356,2]
[357644438,1744264244578,-500.0,0.00038356,2]
[357644439,1744264244588,-540.9004331,0.00038356,2]
[357644440,1744264244598,-500.0,0.00038356,2]
[357644441,1744264244607,-500.0,0.00038356,2]
[357644442,1744264244617,-520.38,0.00038356,2]
[357644443,1744264244626,-544.4,0.00038356,2]
[357644444,1744264244636,-500.0,0.00038356,2]
[357644445,1744264244646,-500.0,0.00038356,2]
[357644446,1744264244655,-500.0,0.00038356,2]
[357644447,1744264244665,-150.0,0.00038356,2]
[357644448,1744264244674,-500.0,0.00038356,2]
[357644449,1744264244684,-581.32,0.00038356,2]
[357644450,1744264244693,-500.0,0.00038356,2]
[357644451,1744264244703,-759.27,0.00038356,2]
[357644452,1744264244713,-500.0,0.00038356,2]
[357644453,1744264244722,-2000.0,0.00038356,120]
[357644454,1744264244732,-500.0,0.00038356,2]
[357644455,1744264244741,-541.09894862,0.00038356,2]
[357644456,1744264244751,-500.0,0.00038356,2]
[357644457,1744264244762,-500.0,0.00038356,2]
[357644458,1744264244773,-500.0,0.00038356,2]
[357644459,1744264244782,-500.0,0.00038356,2]
[357644460,1744264244791,-500.0,0.00038356,2]
[357644461,1744264244803,-500.0,0.00038356,2]
[357644462,1744264244812,-326.97762858,0.00038356,2]
[357644463,1744264244821,-655.05,0.00038356,2]
[357644464,1744264244831,-500.0,0.00038356,2]
[357644465,1744264244842,-500.0,0.00038356,2]
[357644466,1744264244852,-637.08,0.00038356,2]
[357644467,1744264244861,-558.68,0.00038356,2]
[357644468,1744264244871,-597.613666,0.00038356,2]
[357644469,1744264244881,-673.45,0.00038356,2]
[357644470,1744264244891,-500.0,0.00038356,2]
[357644471,1744264244900,-858.95,0.00038356,2]
[357644472,1744264244910,-500.0,0.00038356,2]
[357644473,1744264244919,-522.98433304,0.00038356,2]
[357644474,1744264244929,-500.0,0.00038356,2]
[357644475,1744264244938,-611.9450556,0.00038356,2]
[357644476,1744264244948,-505.5025115,0.00038356,2]
[357644477,1744264244957,-1229.47,0.00038356,2]
[357644478,1744264244967,-1473.33,0.00038356,2]
[357644479,1744264244976,-500.0,0.00038356,2]
[357644480,1744264244985,-500.0,0.00038356,2]
[357644481,1744264244994,-500.0,0.00038356,2]
[357644482,1744264245004,-500.0,0.00038356,2]
[357644483,1744264245080,-504.62537363,0.00038356,2]
[357644484,1744264245090,-500.0,0.00038356,2]
[357644485,1744264245100,-500.0,0.00038356,2]
[357644486,1744264245109,-500.0,0.00038356,2]
[357644487,1744264245118,-500.0,0.00038356,2]
[357644488,1744264245128,-741.99,0.00038356,2]
[357644489,1744264245137,-519.01916244,0.00038356,2]
[357644490,1744264245147,-500.0,0.00038356,2]
[357644491,1744264245157,-500.0,0.00038356,2]
[357644492,1744264245166,-1217.44,0.00038356,2]
[357644493,1744264245175,-500.0,0.00038356,2]
[357644494,1744264245185,-880.4,0.00038356,2]
[357644495,1744264245195,-898.84,0.00038356,2]
[357644496,1744264245203,-500.0,0.00038356,2]
[357644497,1744264245213,-500.0,0.00038356,2]
[357644498,1744264245222,-500.0,0.00038356,2]
[357644499,1744264245231,-961.59,0.00038356,2]
[357644500,1744264245241,-387.416523,0.00038356,2]
[357644501,1744264245250,-500.0,0.00038356,2]
[357644502,1744264245260,-500.0,0.00038356,2]
[357644503,1744264245269,-500.0,0.00038356,2]
[357644504,1744264245279,-500.0,0.00038356,2]
[357644505,1744264245287,-2000.0,0.00038356,2]
[357644506,1744264245297,-616.73,0.00038356,2]
[357644507,1744264245306,-326.81861832,0.00038356,2]
[357644508,1744264245315,-1226.73,0.00038356,2]
[357644509,1744264245325,-500.0,0.00038356,2]
[357644510,1744264245334,-500.0,0.00038356,2]
[357644511,1744264245342,-500.0,0.00038356,2]
[357644512,1744264245352,-593.7,0.00038356,2]
[357644513,1744264245361,-500.0,0.00038356,2]
[357644514,1744264245370,-500.0,0.00038356,2]
[357644515,1744264245379,-500.0,0.00038356,2]
[357644516,1744264245388,-580.55,0.00038356,2]
[357644517,1744264245398,-500.0,0.00038356,2]
[357644518,1744264245407,-819.4,0.00038356,2]
[357644519,1744264245416,-180.186865,0.00038356,2]
[357644520,1744264245425,-500.0,0.00038356,2]
[357644521,1744264245434,-504.71913471,0.00038356,2]
[357644522,1744264245443,-500.0,0.00038356,2]
[357644523,1744264245453,-1433.94,0.00038356,2]
[357644524,1744264245462,-1298.15,0.00038356,2]
[357644525,1744264245472,-687.55,0.00038356,2]
[357644526,1744264245481,-500.0,0.00038356,2]
[357644527,1744264245491,-500.0,0.00038356,2]
[357644528,1744264245500,-500.0,0.00038356,2]
[357644529,1744264245510,-500.0,0.00038356,2]
[357644530,1744264245519,-500.0,0.00038356,2]
[357644531,1744264245528,-643.41,0.00038356,2]
[357644532,1744264245538,-500.0,0.00038356,2]
[357644533,1744264245547,-523.40317668,0.00038356,2]
[357644534,1744264245557,-500.0,0.00038356,2]
[357644535,1744264245567,-673.74,0.00038356,2]
[357644536,1744264245577,-530.53,0.00038356,2]
[357644538,1744264245587,-500.0,0.00038356,2]
[357644539,1744264245596,-500.0,0.00038356,2]
[357644540,1744264245606,-500.0,0.00038356,2]
[357644541,1744264245615,-511.67050717,0.00038356,2]
[357644542,1744264245625,-500.0,0.00038356,2]
[357644543,1744264245634,-606.36,0.00038356,2]
[357644544,1744264245643,-500.0,0.00038356,120]
[357644545,1744264245652,-507.78727534,0.00038356,2]
[357644546,1744264245662,-500.0,0.00038356,2]
[357644547,1744264245671,-500.0,0.00038356,2]
[357644548,1744264245680,-500.0,0.00038356,2]
[357644549,1744264245690,-500.0,0.00038356,2]
[357644550,1744264245699,-500.0,0.00038356,2]
[357644551,1744264245708,-500.0,0.00038356,2]
[357644552,1744264245718,-574.62,0.00038356,2]
[357644553,1744264245727,-1725.7,0.00038356,2]
[357644554,1744264245736,-500.0,0.00038356,2]
[357644555,1744264245746,-716.56,0.00038356,2]
[357644556,1744264245756,-587.49,0.00038356,2]
[357644557,1744264245770,-519.00733132,0.00038356,2]
[357644558,1744264245779,-510.06130588,0.00038356,2]
[357644559,1744264245788,-1022.38,0.00038356,2]
[357644560,1744264245799,-500.0,0.00038356,2]
[357644561,1744264245808,-500.0,0.00038356,2]
[357644562,1744264245817,-500.0,0.00038356,2]
[357644563,1744264245827,-500.0,0.00038356,2]
[357644564,1744264245836,-500.0,0.00038356,2]
[357644565,1744264245845,-700.05,0.00038356,2]
[357644566,1744264245854,-1203.48,0.00038356,2]
[357644567,1744264245864,-500.0,0.00038356,2]
[357644568,1744264245873,-300.0,0.00038356,2]
[357644569,1744264245882,-500.0,0.00038356,2]
[357644570,1744264245891,-1473.03,0.00038356,2]
[357644571,1744264245901,-500.0,0.00038356,2]
[357644572,1744264245911,-723.4,0.00038356,2]
[357644573,1744264245921,-638.63,0.00038356,2]
[357644574,1744264245930,-500.0,0.00038356,2]
[357644575,1744264245939,-598.68,0.00038356,2]
[357644576,1744264245949,-500.0,0.00038356,2]
[357644577,1744264245958,-649.16,0.00038356,2]
[357644578,1744264245967,-1402.18,0.00038356,2]
[357644579,1744264245976,-1054.04,0.00038356,2]
[357644580,1744264245985,-589.65288383,0.00038356,2]
[357644581,1744264245994,-2902.62,0.00038356,2]
[357644582,1744264246003,-500.0,0.00038356,2]
[357644583,1744264246012,-627.96,0.00038356,2]
[357644584,1744264246022,-500.0,0.00038356,2]
[357644585,1744264246031,-509.17428709,0.00038356,2]
[357644586,1744264246040,-751.76,0.00038356,2]
[357644587,1744264246049,-500.0,0.00038356,2]
[357644588,1744264246058,-500.0,0.00038356,2]
[357644589,1744264246067,-500.0,0.00038356,2]
[357644590,1744264246077,-649.26,0.00038356,2]
[357644591,1744264246086,-500.0,0.00038356,2]
[357644592,1744264246095,-568.26,0.00038356,2]
[357644593,1744264246104,-500.0,0.00038356,2]
[357644594,1744264246113,-500.0,0.00038356,2]
[357644595,1744264246122,-513.27,0.00038356,2]
[357644596,1744264246131,-4509.72,0.00038356,2]
[357644597,1744264246140,-500.0,0.00038356,2]
[357644598,1744264246149,-500.0,0.00038356,2]
[357644599,1744264246159,-500.0,0.00038356,2]
[357644600,1744264246168,-500.0,0.00038356,2]
[357644601,1744264246177,-500.0,0.00038356,2]
[357644602,1744264246187,-500.0,0.00038356,2]
[357644603,1744264246196,-500.0,0.00038356,2]
[357644604,1744264246206,-500.0,0.00038356,2]
[357644605,1744264246215,-17271.11582382,0.00038356,2]
[357644609,1744264246638,-1445.87353189,0.00038356,2]
[357644610,1744264246663,-7798.39064429,0.00038356,2]
[357644611,1744264246673,-2831.08,0.00038356,2]
[357644612,1744264246683,-500.0,0.00038356,2]
[357644613,1744264246692,-500.0,0.00038356,2]
[357644614,1744264246702,-500.0,0.00038356,2]
[357644615,1744264246711,-546.41,0.00038356,2]
[357644616,1744264246721,-500.0,0.00038356,2]
[357644617,1744264246731,-624.41,0.00038356,2]
[357644618,1744264246741,-500.0,0.00038356,2]
[357644619,1744264246751,-193.45304223,0.00038356,2]
[357644620,1744264246762,-500.0,0.00038356,2]
[357644621,1744264246773,-933.23,0.00038356,2]
[357644622,1744264246783,-500.0,0.00038356,2]
[357644623,1744264246792,-1237.1,0.00038356,2]
[357644624,1744264246803,-500.0,0.00038356,2]
[357644625,1744264246813,-180.186855,0.00038356,2]
[357644626,1744264246822,-500.0,0.00038356,2]
[357644627,1744264246833,-804.77,0.00038356,2]
[357644628,1744264246844,-603.32,0.00038356,2]
[357644629,1744264246855,-543.81,0.00038356,2]
[357644630,1744264246864,-500.0,0.00038356,2]
[357644631,1744264246874,-500.0,0.00038356,2]
[357644632,1744264246884,-619.75,0.00038356,2]
[357644633,1744264246894,-500.0,0.00038356,2]
[357644634,1744264246904,-500.0,0.00038356,2]
[357644635,1744264246914,-506.00752762,0.00038356,2]
[357644636,1744264246924,-561.41,0.00038356,2]
[357644637,1744264246935,-500.0,0.00038356,2]
[357644638,1744264246945,-527.18121868,0.00038356,2]
[357644639,1744264246955,-2425.63,0.00038356,2]
[357644640,1744264246964,-500.0,0.00038356,2]
[357644641,1744264246974,-500.0,0.00038356,2]
[357644642,1744264246984,-649.81,0.00038356,2]
[357644643,1744264246993,-500.0,0.00038356,2]
[357644644,1744264247003,-500.0,0.00038356,2]
[357644645,1744264247012,-500.0,0.00038356,2]
[357644646,1744264247022,-970.4,0.00038356,2]
[357644647,1744264247032,-171.8101637,0.00038356,2]
[357644648,1744264247042,-500.0,0.00038373,5]
[357644649,1744264247053,-211.69989566,0.0003842,11]
[357644650,1744264247063,-227.87,0.00038443,2]
[357644651,1744264247073,-9507.26340757,0.000385,3]
[357644652,1744264247083,-10541.52762891,0.0003851,3]
[357644653,1744264247101,-772.03141019,0.0003851,3]
[357644654,1744264247110,-500.0,0.0003852,2]
[357644655,1744264247120,-856.0,0.0003852,5]
[357644656,1744264247130,-24763.06978213,0.0003852,3]
[357644657,1744264247146,-511.12438244,0.0003852,3]
[357644658,1744264247524,-635.0,0.0003852,3]
[357644659,1744264247544,-537.74365054,0.0003852,3]
[357644660,1744264247602,-146.20256885,0.0003852,3]
[357644661,1744264247614,-2884.84977065,0.0003852,3]
[357644662,1744264247626,-2451.1127707,0.0003852,3]
[357644663,1744264247638,-5922.67930985,0.0003852,3]
[357644664,1744264247650,-4821.6798791,0.0003852,3]
[357644665,1744264247662,-308.94361421,0.0003852,3]
[357644666,1744264247692,-2271.83042803,0.0003852,3]
[357644667,1744264247702,-47536.3170379,0.0003852,3]
[357644668,1744264247712,-500.0,0.00038529,2]
[357644669,1744264247721,-500.0,0.00038529,2]
[357644670,1744264247731,-37189.5376,0.0003853,2]
[357644671,1744264247741,-182.4002,0.0003853,2]
[357644672,1744264247751,-58086.2641,0.0003853,2]
[357644673,1744264247763,-1000.0,0.0003853,2]
[357644674,1744264247773,-19014.5268151,0.000386,3]
[357644675,1744264247783,-500.0,0.0003862,120]
[357644676,1744264247793,-500.0,0.0003862,120]
[357644677,1744264247802,-500.0,0.0003862,120]
[357644678,1744264247812,-500.0,0.0003862,120]
[357644679,1744264247822,-500.0,0.0003862,120]
[357644680,1744264247832,-500.0,0.0003862,120]
[357644681,1744264247843,-500.0,0.0003862,2]
[357644682,1744264247854,-500.0,0.0003862,2]
[357644683,1744264247863,-152116.214521,0.0003862,3]
[357644684,1744264247874,-500.0,0.00038629,2]
[357644685,1744264247883,-500.0,0.00038629,2]
[357644686,1744264247893,-595.95,0.00038629,2]
[357644687,1744264247902,-500.0,0.00038629,120]
[357644688,1744264247912,-297.14683636,0.00038629,120]
[357644689,1744264247923,-500.0,0.00038629,2]
[357644690,1744264247933,-500.0,0.00038629,2]
[357644691,1744264247943,-500.0,0.00038629,2]
[357644692,1744264247953,-500.0,0.0003863,2]
[357644693,1744264247962,-312.02872101,0.0003863,2]
[357644694,1744264247972,-500.0,0.0003863,2]
[357644695,1744264247982,-500.0,0.0003863,2]
[357644696,1744264247991,-500.0,0.0003863,2]
[357644697,1744264248001,-500.0,0.0003863,2]
[357644698,1744264248011,-500.0,0.0003863,2]
[357644699,1744264248021,-500.0,0.0003863,2]
[357644700,1744264248031,-503.0,0.0003863,2]
[357644701,1744264248041,-500.0,0.0003863,2]
[357644702,1744264248051,-500.0,0.0003863,2]
[357644703,1744264248061,-1000.0,0.0003863,2]
[357644704,1744264248072,-500.0,0.0003863,2]
[357644705,1744264248082,-663.0,0.0003863,2]
[357644706,1744264248093,-343.88423838,0.0003863,2]
[357644707,1744264248103,-500.0,0.0003863,2]
[357644708,1744264248113,-500.0,0.0003863,2]
[357644709,1744264248123,-500.0,0.0003863,2]
[357644710,1744264248133,-500.0,0.0003863,2]
[357644711,1744264248143,-620.31725926,0.0003863,2]
[357644712,1744264248153,-500.0,0.0003863,2]
[357644713,1744264248163,-500.0,0.0003863,2]
[357644714,1744264248173,-500.0,0.0003863,2]
[357644715,1744264248183,-500.0,0.0003863,2]
[357644716,1744264248194,-928.67,0.0003863,2]
[357644717,1744264248205,-500.0,0.0003863,2]
[357644718,1744264248215,-500.0,0.0003863,2]
[357644719,1744264248226,-500.0,0.0003863,2]
[357644720,1744264248236,-500.0,0.0003863,2]
[357644721,1744264248247,-500.0,0.0003863,2]
[357644722,1744264248256,-500.0,0.0003863,2]
[357644723,1744264248266,-500.0,0.0003863,2]
[357644724,1744264248277,-500.0,0.0003863,2]
[357644725,1744264248518,-500.0,0.0003863,2]
[357644726,1744264248528,-1000.7,0.0003863,2]
[357644727,1744264248538,-500.0,0.0003863,2]
[357644728,1744264248548,-500.0,0.0003863,2]
[357644729,1744264248558,-627.68766649,0.0003863,2]
[357644730,1744264248569,-500.0,0.0003863,2]
[357644731,1744264248579,-500.0,0.0003863,2]
[357644732,1744264248589,-500.0,0.0003863,2]
[357644733,1744264248599,-500.0,0.0003863,2]
[357644734,1744264248608,-500.0,0.0003863,2]
[357644735,1744264248617,-500.0,0.0003863,2]
[357644736,1744264248627,-500.0,0.0003863,2]
[357644737,1744264248637,-500.0,0.0003863,2]
[357644738,1744264248646,-573.78,0.0003863,2]
[357644739,1744264248656,-500.0,0.0003863,2]
[357644740,1744264248667,-500.0,0.0003863,2]
[357644741,1744264248676,-500.0,0.0003863,2]
[357644742,1744264248685,-500.0,0.0003863,2]
[357644743,1744264248695,-500.0,0.0003863,2]
[357644744,1744264248704,-500.0,0.0003863,2]
[357644745,1744264248713,-500.0,0.0003863,2]
[357644746,1744264248723,-500.0,0.0003863,2]
[357644747,1744264248732,-500.0,0.0003863,2]
[357644748,1744264248742,-500.0,0.0003863,2]
[357644749,1744264248751,-523.55,0.0003863,2]
[357644750,1744264248762,-500.0,0.0003863,2]
[357644751,1744264248774,-1123.08,0.0003863,2]
[357644752,1744264248783,-500.0,0.0003863,2]
[357644753,1744264248792,-500.0,0.0003863,2]
[357644754,1744264248802,-270.07354929,0.0003863,2]
[357644755,1744264248812,-631.89,0.0003863,2]
[357644756,1744264248821,-500.0,0.0003863,2]
[357644757,1744264248830,-500.0,0.0003863,2]
[357644758,1744264248840,-644.64,0.0003863,2]
[357644759,1744264248850,-546.88,0.0003863,2]
[357644760,1744264248859,-500.0,0.0003863,2]
[357644761,1744264248868,-500.0,0.0003863,2]
[357644762,1744264248878,-500.0,0.0003863,2]
[357644763,1744264248887,-657.77,0.0003863,2]
[357644764,1744264248896,-405.24122012,0.0003863,2]
[357644765,1744264248905,-500.0,0.0003863,2]
[357644766,1744264248915,-500.0,0.0003863,2]
[357644767,1744264248924,-500.0,0.0003863,2]
[357644768,1744264248933,-832.75,0.0003863,2]
[357644769,1744264248942,-500.0,0.0003863,2]
[357644770,1744264248952,-500.0,0.0003863,2]
[357644771,1744264248962,-577.96,0.0003863,2]
[357644772,1744264248972,-500.0,0.0003863,2]
[357644773,1744264248981,-500.0,0.0003863,2]
[357644774,1744264248991,-575.52,0.0003863,2]
[357644775,1744264249000,-666.2,0.0003863,2]
[357644776,1744264249009,-500.0,0.0003863,2]
[357644777,1744264249019,-500.0,0.0003863,2]
[357644778,1744264249028,-500.0,0.0003863,2]
[357644779,1744264249037,-500.0,0.0003863,2]
[357644780,1744264249047,-1165.85,0.0003863,2]
[357644781,1744264249057,-500.0,0.0003863,2]
[357644782,1744264249066,-500.0,0.0003863,2]
[357644783,1744264249075,-500.0,0.0003863,2]
[357644784,1744264249085,-500.0,0.0003863,2]
[357644785,1744264249094,-721.07,0.0003863,2]
[357644786,1744264249103,-500.0,0.0003863,2]
[357644787,1744264249113,-500.0,0.0003863,2]
[357644788,1744264249123,-500.0,0.0003863,2]
[357644789,1744264249133,-959.5,0.0003863,2]
[357644790,1744264249143,-500.0,0.0003863,2]
[357644791,1744264249152,-500.0,0.0003863,2]
[357644792,1744264249161,-526.09,0.0003863,2]
[357644793,1744264249173,-500.0,0.0003863,2]
[357644794,1744264249182,-500.0,0.0003863,2]
[357644795,1744264249191,-570.78,0.0003863,2]
[357644796,1744264249201,-500.0,0.0003863,2]
[357644797,1744264249211,-527.42139789,0.0003863,2]
[357644798,1744264249220,-500.0,0.0003863,2]
[357644799,1744264249230,-732.09,0.0003863,2]
[357644800,1744264249239,-645.67,0.0003863,2]
[357644801,1744264249249,-500.0,0.0003863,2]
[357644802,1744264249259,-500.0,0.0003863,2]
[357644803,1744264249268,-500.0,0.0003863,2]
[357644804,1744264249278,-1021.37,0.0003863,2]
[357644805,1744264249287,-500.0,0.0003863,2]
[357644806,1744264249296,-500.0,0.0003863,2]
[357644807,1744264249305,-500.0,0.0003863,2]
[357644808,1744264249314,-500.0,0.0003863,2]
[357644809,1744264249324,-500.0,0.0003863,2]
[357644810,1744264249334,-500.0,0.0003863,2]
[357644811,1744264249343,-500.0,0.0003863,2]
[357644812,1744264249353,-787.82,0.0003863,2]
[357644813,1744264249363,-500.0,0.0003863,2]
[357644814,1744264249372,-500.0,0.0003863,2]
[357644815,1744264249382,-500.0,0.0003863,2]
[357644816,1744264249391,-787.78,0.0003863,2]
[357644817,1744264249400,-500.0,0.0003863,2]
[357644818,1744264249410,-500.0,0.0003863,2]